Workbook

Sheet 出来高調書（業者請求用）
B1: 業者名 | G1: 契約工事出来高調書 | J1: 年月度 | M1: 所長 | N1: 主任 | O1: 協力業者
B2: 工事名
B3: 工期又は納期
B4: 支払い条件 | C4: 毎月末日締め切り | D4: 支払い | E4: 翌月末
B5: 名 称 | C5: 仕様 | D5: 単位 | E5: 契約・見積 | H5: 前回出来高 | J5: 今回出来高 | L5: 累計出来高 | N5: 残高 | Q5: 今回保留金 | R5: 前回保留 | S5: 今回支払金
E6: 数量 | F6: 単価 | G6: 金 額 | H6: 数量 | I6: 金 額 | J6: 数量 | K6: 金 額 | L6: 数量 | M6: 金 額 | N6: 数量 | O6: 金 額
G10: =内訳!G40 -> 0 | I10: =内訳!I40 -> 0 | K10: =内訳!K40 -> 0 | M10: =内訳!M40 -> 0 | O10: =内訳!O40 -> 0 | Q10: =+Q74 ->  | R10: =+R74 ->  | S10: =+K10+Q10+R10 -> 
Q12: =-#REF! ->  | R12: =+#REF! ->  | S12: =+K12+Q12+R12 -> 
B24: 出来高 計 | G24: =SUM(G9:G23) -> 0 | I24: =SUM(I9:I23) -> 0 | K24: =SUM(K9:K23) -> 0 | M24: =SUM(M9:M23) -> 0 | O24: =SUM(O9:O23) -> 0 | Q24: =SUM(Q9:Q23) ->  | R24: =SUM(R9:R23) ->  | S24: =SUM(S9:S23) -> 
I27: 前回保留金額 | K27: 今回保留金額
B28: 今回 保留金額 | C28: 出来高の約10％ | I28: 0 | K28: =K24*0.1 -> 0 | M28: =+M94 -> 0 | O28: =+O94 -> 0
B30: 前回 保留金額解除 | K30: =I28 -> 0
M32: =+M96 -> 0 | O32: =+O96 -> 0
M34: =+M98 -> 0 | O34: =+O98 -> 0
B36: 支払 計 | K36: =K24+K30 -> 0
I37: 0.1 | J37: 税 | K37: =K36*I37 -> 0 | M37: =IF(G37="","",I37+K37) ->  | O37: =IF(G37="","",G37-M37) -> 
J38: 税込 | K38: =K36+K37 -> 0
Q46: =+内訳!K82 -> 0 | R46: =+内訳!R76 ->  | S46: =+K48+Q46+R46 -> 
Q48: =+#REF! ->  | R48: =+#REF! ->  | S48: =+K50+Q48+R48 -> 
Q50: =+#REF! ->  | R50: =+#REF! ->  | S50: =+K52+Q50+R50 -> 
Q52: =+#REF! ->  | R52: =+#REF! ->  | S52: =+K54+Q52+R52 -> 
Q54: =+#REF! ->  | R54: =+#REF! ->  | S54: =+K56+Q54+R54 -> 
Q56: =+#REF! ->  | R56: =+#REF! ->  | S56: =+K58+Q56+R56 -> 
Q58: =+#REF! ->  | R58: =+#REF! ->  | S58: =+#REF!+Q58+R58 -> 
Q60: =-K60*0.1 -> 0 | S60: =+K60+Q60+R60 -> 0
Q73: 今回保留金 | R73: 前回保留 | S73: 今回支払金
Q74: =SUM(Q45:Q60) ->  | R74: =SUM(R45:R73) ->  | S74: =SUM(S49:S60) -> 
J78: 今回出来高 | K78: =+K74 -> 0
J79: 前回保留 | K79: =+R74 -> 
J80: 今回保留金 | K80: =+Q74 -> 
J81: 合計支払 | K81: =SUM(K78:K80) -> 

Sheet 内訳
A1: 0 | B1: 名 称 | C1: 仕様 | D1: 単位 | E1: 契約・見積 | H1: 前回出来高 | J1: 今回出来高 | L1: 累計出来高 | N1: 残高 | Q1: 今回保留金 | R1: 前回保留 | S1: 今回支払金
E2: 数量 | F2: 単価 | G2: 金 額 | H2: 数量 | I2: 金 額 | J2: 数量 | K2: 金 額 | L2: 数量 | M2: 金 額 | N2: 数量 | O2: 金 額
A3: =A1+1 -> 1
A5: =A3+1 -> 2
A7: =A5+1 -> 3 | O7: =M8/G8 -> 
G8: =E8*F8 -> 0 | H8: 0 | I8: 0 | K8: =F8*J8 -> 0 | L8: =H8+J8 -> 0 | M8: =I8+K8 -> 0 | N8: =E8-J8 -> 0 | O8: =N8*F8 -> 0 | Q8: =+#REF! ->  | R8: =+#REF! ->  | S8: =+K8+Q8+R8 -> 
A9: =A7+1 -> 4 | O9: =M10/G10 -> 
G10: =E10*F10 -> 0 | H10: 0 | I10: 0 | K10: =F10*J10 -> 0 | L10: =H10+J10 -> 0 | M10: =I10+K10 -> 0 | N10: =E10-J10 -> 0 | O10: =N10*F10 -> 0 | Q10: =+#REF! ->  | R10: =+#REF! ->  | S10: =+K10+Q10+R10 -> 
A11: =A9+1 -> 5 | O11: =M12/G12 -> 
G12: =E12*F12 -> 0 | H12: 0 | I12: 0 | K12: =F12*J12 -> 0 | L12: =H12+J12 -> 0 | M12: =I12+K12 -> 0 | N12: =E12-J12 -> 0 | O12: =N12*F12 -> 0 | Q12: =+#REF! ->  | R12: =+#REF! ->  | S12: =+K12+Q12+R12 -> 
A13: =A11+1 -> 6
G14: =E14*F14 -> 0 | H14: 0 | I14: 0 | K14: =F14*J14 -> 0 | L14: =H14+J14 -> 0 | M14: =I14+K14 -> 0 | N14: =E14-J14 -> 0 | O14: 0 | R14: =+#REF! ->  | S14: =+K14+Q14+R14 -> 
A15: =A13+1 -> 7
G16: =E16*F16 -> 0 | H16: 0 | I16: 0 | K16: =F16*J16 -> 0 | L16: =H16+J16 -> 0 | M16: =I16+K16 -> 0 | N16: =E16-J16 -> 0 | O16: 0 | R16: =+#REF! ->  | S16: =+K16+Q16+R16 -> 
A17: =A15+1 -> 8
G18: =E18*F18 -> 0 | H18: 0 | I18: 0 | K18: =F18*J18 -> 0 | L18: =H18+J18 -> 0 | M18: =I18+K18 -> 0 | N18: =E18-J18 -> 0 | O18: 0 | R18: =+#REF! ->  | S18: =+K18+Q18+R18 -> 
A19: =A17+1 -> 9
G20: =E20*F20 -> 0 | H20: 0 | I20: 0 | K20: =F20*J20 -> 0 | L20: =H20+J20 -> 0 | M20: =I20+K20 -> 0 | N20: =E20-J20 -> 0 | O20: 0 | Q20: =+#REF! ->  | R20: =+#REF! ->  | S20: =+K20+Q20+R20 -> 
A21: =A19+1 -> 10
G22: =E22*F22 -> 0 | H22: 0 | I22: 0 | K22: =F22*J22 -> 0 | L22: =H22+J22 -> 0 | M22: =I22+K22 -> 0 | N22: =E22-J22 -> 0 | O22: 0 | Q22: =+#REF! ->  | R22: =+#REF! ->  | S22: =+K22+Q22+R22 -> 
A23: =A21+1 -> 11
G24: =E24*F24 -> 0 | H24: 0 | I24: 0 | K24: =F24*J24 -> 0 | L24: =H24+J24 -> 0 | M24: 0 | N24: =E24-J24 -> 0 | O24: 0 | Q24: =+#REF! ->  | R24: =+#REF! ->  | S24: =+K24+Q24+R24 -> 
A25: =A23+1 -> 12
Q26: =+#REF! ->  | R26: =+#REF! ->  | S26: =+K26+Q26+R26 -> 
A27: =A25+1 -> 13
Q28: =+#REF! ->  | R28: =+#REF! ->  | S28: =+K28+Q28+R28 -> 
A29: =A27+1 -> 14
Q30: =+#REF! ->  | R30: =+#REF! ->  | S30: =+K30+Q30+R30 -> 
A31: =A29+1 -> 15
Q32: =+#REF! ->  | R32: =+#REF! ->  | S32: =+K32+Q32+R32 -> 
A33: =A31+1 -> 16
Q34: =+#REF! ->  | R34: =+#REF! ->  | S34: =+K34+Q34+R34 -> 
A35: =A33+1 -> 17
Q36: =+#REF! ->  | R36: =+#REF! ->  | S36: =+K36+Q36+R36 -> 
A37: =A35+1 -> 18
Q38: =+#REF! ->  | R38: =+#REF! ->  | S38: =+K38+Q38+R38 -> 
A39: =A37+1 -> 19
B40: 小 計 | G40: =SUM(G7:G39) -> 0 | I40: =SUM(I7:I39) -> 0 | K40: =SUM(K7:K39) -> 0 | M40: =SUM(M7:M39) -> 0 | O40: =G40-M40 -> 0 | Q40: =+#REF! ->  | R40: =+#REF! ->  | S40: =+K40+Q40+R40 -> 
A41: =A39+1 -> 20
Q42: =+#REF! ->  | R42: =+#REF! ->  | S42: =+K42+Q42+R42 -> 
A43: =A41+1 -> 21
A45: =A43+1 -> 22
A47: =A45+1 -> 23
A49: =A47+1 -> 24
A51: =A49+1 -> 25
A53: =A51+1 -> 26
A55: =A53+1 -> 27
A57: =A55+1 -> 28
A59: =A57+1 -> 29
A61: =A59+1 -> 30
A63: =A61+1 -> 31
A65: =A63+1 -> 32
A67: =A65+1 -> 33
A69: =A67+1 -> 34
A71: =A69+1 -> 35
A73: =A71+1 -> 36
A75: =A73+1 -> 37 | Q75: 今回保留金 | R75: 前回保留
Q76: =SUM(Q7:Q71) ->  | R76: =SUM(R7:R71) ->  | S76: =SUM(S7:S71) -> 
A77: =A75+1 -> 38
Q78: =-Q76/K76 -> 
A79: =A77+1 -> 39
Q80: =+#REF! ->  | R80: =+#REF! ->  | S80: =+K80+Q80+R80 -> 
A81: =A79+1 -> 40
A83: =A81+1 -> 41
A85: =A83+1 -> 42
A87: =A85+1 -> 43
A89: =A87+1 -> 44
A91: =A89+1 -> 45
A93: =A91+1 -> 46
A95: =A93+1 -> 47
A97: =A95+1 -> 48
A99: =A97+1 -> 49
A101: =A99+1 -> 50
A103: =A101+1 -> 51
A105: =A103+1 -> 52
A107: =A105+1 -> 53
A109: =A107+1 -> 54
A111: =A109+1 -> 55
A113: =A111+1 -> 56 | Q113: 今回保留金 | R113: 前回保留
Q114: =SUM(Q45:Q109) ->  | R114: =SUM(R45:R109) ->  | S114: =SUM(S45:S109) -> 
A115: =A113+1 -> 57
Q116: =-Q114/K114 -> 
A117: =A115+1 -> 58
Q118: =+#REF! ->  | R118: =+#REF! ->  | S118: =+K118+Q118+R118 -> 
A119: =A117+1 -> 59
A121: =A119+1 -> 60
A123: =A121+1 -> 61
A125: =A123+1 -> 62
A127: =A125+1 -> 63
A129: =A127+1 -> 64
A131: =A129+1 -> 65
A133: =A131+1 -> 66
A135: =A133+1 -> 67
A137: =A135+1 -> 68
A139: =A137+1 -> 69
A141: =A139+1 -> 70
A143: =A141+1 -> 71
A145: =A143+1 -> 72
A147: =A145+1 -> 73
A149: =A147+1 -> 74
A151: =A149+1 -> 75 | Q151: 今回保留金 | R151: 前回保留
Q152: =SUM(Q83:Q147) ->  | R152: =SUM(R83:R147) ->  | S152: =SUM(S83:S147) -> 
A153: =A151+1 -> 76
Q154: =-Q152/K152 -> 
A155: =A153+1 -> 77
Q156: =+#REF! ->  | R156: =+#REF! ->  | S156: =+K156+Q156+R156 -> 
A157: =A155+1 -> 78
A159: =A157+1 -> 79
A161: =A159+1 -> 80
A163: =A161+1 -> 81
A165: =A163+1 -> 82
A167: =A165+1 -> 83
A169: =A167+1 -> 84
A171: =A169+1 -> 85
A173: =A171+1 -> 86
A175: =A173+1 -> 87
A177: =A175+1 -> 88
A179: =A177+1 -> 89
A181: =A179+1 -> 90
A183: =A181+1 -> 91
A185: =A183+1 -> 92
A187: =A185+1 -> 93
A189: =A187+1 -> 94 | Q189: 今回保留金 | R189: 前回保留
Q190: =SUM(Q121:Q185) ->  | R190: =SUM(R121:R185) ->  | S190: =SUM(S121:S185) -> 
A191: =A189+1 -> 95
Q192: =-Q190/K190 -> 
A193: =A191+1 -> 96
Q194: =+#REF! ->  | R194: =+#REF! ->  | S194: =+K194+Q194+R194 -> 
A195: =A193+1 -> 97
A197: =A195+1 -> 98
A199: =A197+1 -> 99
A201: =A199+1 -> 100
A203: =A201+1 -> 101
A205: =A203+1 -> 102
A207: =A205+1 -> 103
A209: =A207+1 -> 104
A211: =A209+1 -> 105
A213: =A211+1 -> 106
A215: =A213+1 -> 107
A217: =A215+1 -> 108
A219: =A217+1 -> 109
A221: =A219+1 -> 110
A223: =A221+1 -> 111
A225: =A223+1 -> 112
A227: =A225+1 -> 113 | Q227: 今回保留金 | R227: 前回保留
Q228: =SUM(Q159:Q223) ->  | R228: =SUM(R159:R223) ->  | S228: =SUM(S159:S223) -> 
A229: =A227+1 -> 114
Q230: =-Q228/K228 -> 
A231: =A229+1 -> 115
Q232: =+#REF! ->  | R232: =+#REF! ->  | S232: =+K232+Q232+R232 -> 
A233: =A231+1 -> 116
A235: =A233+1 -> 117
A237: =A235+1 -> 118
A239: =A237+1 -> 119
A241: =A239+1 -> 120
A243: =A241+1 -> 121
A245: =A243+1 -> 122
A247: =A245+1 -> 123
A249: =A247+1 -> 124
A251: =A249+1 -> 125
A253: =A251+1 -> 126
A255: =A253+1 -> 127
A257: =A255+1 -> 128
A259: =A257+1 -> 129
A261: =A259+1 -> 130
A263: =A261+1 -> 131
A265: =A263+1 -> 132 | Q265: 今回保留金 | R265: 前回保留
Q266: =SUM(Q197:Q261) ->  | R266: =SUM(R197:R261) ->  | S266: =SUM(S197:S261) -> 
A267: =A265+1 -> 133
Q268: =-Q266/K266 -> 
A269: =A267+1 -> 134
Q270: =+#REF! ->  | R270: =+#REF! ->  | S270: =+K270+Q270+R270 -> 
A271: =A269+1 -> 135
A273: =A271+1 -> 136
A275: =A273+1 -> 137
A277: =A275+1 -> 138
A279: =A277+1 -> 139
A281: =A279+1 -> 140
A283: =A281+1 -> 141
A285: =A283+1 -> 142
A287: =A285+1 -> 143
A289: =A287+1 -> 144
A291: =A289+1 -> 145
A293: =A291+1 -> 146
A295: =A293+1 -> 147
A297: =A295+1 -> 148
A299: =A297+1 -> 149
A301: =A299+1 -> 150
A303: =A301+1 -> 151 | Q303: 今回保留金 | R303: 前回保留
Q304: =SUM(Q235:Q299) ->  | R304: =SUM(R235:R299) ->  | S304: =SUM(S235:S299) -> 
A305: =A303+1 -> 152
Q306: =-Q304/K304 -> 
A307: =A305+1 -> 153
Q308: =+#REF! ->  | R308: =+#REF! ->  | S308: =+K308+Q308+R308 -> 
A309: =A307+1 -> 154
A311: =A309+1 -> 155
A313: =A311+1 -> 156
A315: =A313+1 -> 157
A317: =A315+1 -> 158
A319: =A317+1 -> 159
... 102 more rows
